fUSD/lending_fUSD_20240501
["ID","MTS","AMOUNT","RATE_DAILY","PERIOD"]
[325123877,1714528234963,-500.0,0.00012776,2]
[325123878,1714528234974,-510.71561438,0.00012776,2]
[325123879,1714528234983,-522.99294151,0.00012776,2]
[325123880,1714528234993,-517.12571521,0.00012776,2]
[325123881,1714528235003,-500.0,0.00012776,2]
[325123882,1714528235013,-500.0,0.00012776,2]
[325123883,1714528235022,-500.0,0.00012776,2]
[325123884,1714528235032,-538.49884696,0.00012776,2]
[325123885,1714528235041,-507.99936379,0.00012776,2]
[325123886,1714528235050,-510.34674999,0.00012776,2]
[325123887,1714528235060,-504.83348592,0.00012776,2]
[325123888,1714528235069,-500.0,0.00012776,2]
[325123889,1714528235078,-500.0,0.00012776,2]
[325123890,1714528235087,-500.0,0.00012776,2]
[325123891,1714528235097,-520.9089054,0.00012776,2]
[325123892,1714528235107,-502.02080622,0.00012776,2]
[325123893,1714528235117,-500.0,0.00012776,2]
[325123894,1714528235126,-500.0,0.00012776,2]
[325123895,1714528235136,-503.34423759,0.00012776,2]
[325123896,1714528235146,-526.01382752,0.00012776,2]
[325123897,1714528235155,-510.94548034,0.00012776,2]
[325123898,1714528235164,-639.95469079,0.00012776,2]
[325123899,1714528235173,-501.48625582,0.00012776,2]
[325123900,1714528235182,-502.44144054,0.00012776,2]
[325123901,1714528235192,-507.24715552,0.00012776,2]
[325123902,1714528235201,-501.82184637,0.00012776,2]
[325123903,1714528235210,-502.02704339,0.00012776,2]
[325123904,1714528235220,-500.0,0.00012776,2]
[325123905,1714528235230,-501.36665729,0.00012776,2]
[325123906,1714528235240,-501.03953103,0.00012776,2]
[325123907,1714528235250,-511.16599,0.00012776,2]
[325123908,1714528235259,-500.0,0.00012776,2]
[325123909,1714528235268,-500.81219926,0.00012776,2]
[325123910,1714528235278,-501.09508694,0.00012776,2]
[325123911,1714528235287,-500.0,0.00012776,2]
[325123912,1714528235297,-504.64365496,0.00012776,2]
[325123913,1714528235306,-500.0,0.00012776,2]
[325123914,1714528235316,-501.86933522,0.00012776,2]
[325123915,1714528235326,-500.0,0.00012776,2]
[325123916,1714528235335,-500.0,0.00012776,2]
[325123917,1714528235344,-502.16068457,0.00012776,2]
[325123918,1714528235355,-500.0,0.00012776,2]
[325123919,1714528235365,-628.09408534,0.00012776,2]
[325123920,1714528235374,-165.92163763,0.00012776,2]
[325123921,1714528235383,-501.29957977,0.00012776,2]
[325123922,1714528235393,-504.69932253,0.00012776,2]
[325123923,1714528235402,-501.93047898,0.00012776,2]
[325123924,1714528235412,-501.05950149,0.00012776,2]
[325123925,1714528235421,-500.0,0.00012776,2]
[325123926,1714528235431,-501.0326071,0.00012776,2]
[325123927,1714528235440,-1007.67598105,0.00012776,2]
[325123928,1714528235450,-500.0,0.00012776,2]
[325123929,1714528235459,-500.0,0.00012776,2]
[325123930,1714528235468,-500.0,0.00012776,2]
[325123931,1714528235478,-500.0,0.00012776,2]
[325123932,1714528235487,-507.1813724,0.00012776,2]
[325123933,1714528235496,-500.0,0.00012776,2]
[325123934,1714528235505,-500.0,0.00012776,2]
[325123935,1714528235515,-500.0,0.00012776,2]
[325123936,1714528235524,-536.50879828,0.00012776,2]
[325123937,1714528235533,-613.41184916,0.00012776,2]
[325123938,1714528235543,-500.0,0.00012776,2]
[325123939,1714528235552,-1028.53,0.00012776,2]
[325123940,1714528235561,-524.19268534,0.00012776,2]
[325123941,1714528235571,-500.0,0.00012776,2]
[325123942,1714528235580,-521.49529182,0.00012776,2]
[325123943,1714528235590,-500.0,0.00012776,2]
[325123944,1714528235600,-500.0,0.00012776,2]
[325123945,1714528235609,-500.0,0.00012776,2]
[325123946,1714528235619,-500.8962282,0.00012776,2]
[325123947,1714528235629,-500.0,0.00012776,2]
[325123948,1714528235638,-500.0,0.00012776,2]
[325123949,1714528235648,-501.19962039,0.00012776,2]
[325123950,1714528235658,-509.11833326,0.00012776,2]
[325123951,1714528235667,-500.0,0.00012776,2]
[325123952,1714528235677,-525.76867955,0.00012776,2]
[325123953,1714528235686,-500.0,0.00012776,2]
[325123954,1714528235838,-384.28872694,0.00012776,2]
[325123958,1714528237642,-115.71127306,0.00012776,2]
[325123960,1714528237651,-235.41961,0.00012776,2]
[325124133,1714528239736,-1804.5,0.00012775,2]
[325124135,1714528239746,-500.0,0.00012775,2]
[325124137,1714528239755,-500.0,0.00012775,2]
[325124139,1714528239765,-169.19110193,0.00012776,2]
[325124141,1714528239775,-500.0,0.00012776,2]
[325124143,1714528239784,-500.0,0.00012776,2]
[325124145,1714528239794,-520.4444285,0.00012776,2]
[325124147,1714528239803,-183.43715771,0.00012776,2]
[325124159,1714528239900,-337.9053739,0.00012776,2]
[325124161,1714528239910,-500.0,0.00012776,2]
[325124163,1714528239922,-500.0,0.00012776,2]
[325124165,1714528239931,-500.0,0.00012776,2]
[325124167,1714528239941,-509.80664402,0.00012776,2]
[325124169,1714528239950,-500.0,0.00012776,2]
[325124171,1714528239959,-500.0,0.00012776,2]
[325124173,1714528239968,-500.0,0.00012776,2]
[325124175,1714528239978,-500.0,0.00012776,2]
[325124177,1714528239986,-1704.88,0.00012776,2]
[325124178,1714528239996,-508.4,0.00012776,2]
[325124181,1714528240008,-500.0,0.00012776,2]
[325124183,1714528240018,-729.15,0.00012776,2]
[325124185,1714528240027,-522.66735687,0.00012776,2]
[325124187,1714528240036,-500.0,0.00012776,2]
[325124189,1714528240045,-501.63398618,0.00012776,2]
[325124191,1714528240055,-451.51198855,0.00012776,2]
[325124192,1714528240063,-500.0,0.00012776,2]
[325124195,1714528240073,-6260.61,0.00012776,2]
[325124196,1714528240082,-518.64616415,0.00012776,2]
[325124199,1714528240091,-500.0,0.00012776,2]
[325124200,1714528240100,-500.0,0.00012776,2]
[325124202,1714528240110,-501.44848194,0.00012776,2]
[325124204,1714528240118,-500.0,0.00012776,2]
[325124206,1714528240127,-642.0,0.00012776,2]
[325124208,1714528240136,-500.0,0.00012776,2]
[325124210,1714528240145,-516.28,0.00012776,2]
[325124212,1714528240154,-500.0,0.00012776,2]
[325124214,1714528240163,-173.69540724,0.00012776,2]
[325124217,1714528240176,-326.30459276,0.00012776,2]
[325124219,1714528240185,-22.47190494,0.00012776,2]
[325124221,1714528240196,-477.52809506,0.00012776,2]
[325124223,1714528240205,-127.04207131,0.00012776,2]
[325124225,1714528240217,-250.13277065,0.00012776,2]
[325124582,1714528243298,-150.91794633,0.00012751,2]
[325124584,1714528243308,-327.78205589,0.00012774,2]
[325124589,1714528243349,-217.76545603,0.00012774,2]
[325124591,1714528243361,-500.0,0.00012775,2]
[325124593,1714528243370,-122.82515804,0.00012776,2]
[325124595,1714528243380,-500.0,0.00012776,2]
[325124597,1714528243389,-509.85254518,0.00012776,2]
[325124599,1714528243398,-500.0,0.00012776,2]
[325124601,1714528243407,-500.0,0.00012776,2]
[325124603,1714528243416,-500.0,0.00012776,2]
[325124605,1714528243427,-500.0,0.00012776,2]
[325124607,1714528243437,-2449.61,0.00012776,2]
[325124609,1714528243446,-500.0,0.00012776,2]
[325124611,1714528243455,-1809.44,0.00012776,2]
[325124613,1714528243464,-523.50873503,0.00012776,2]
[325124615,1714528243473,-500.0,0.00012776,2]
[325124617,1714528243483,-500.0,0.00012776,2]
[325124619,1714528243492,-500.0,0.00012776,2]
[325124621,1714528243501,-433.74524813,0.00012776,2]
[325124623,1714528243512,-171.63160513,0.00012776,2]
[325124625,1714528243521,-500.0,0.00012776,2]
[325124626,1714528243530,-772.59,0.00012776,2]
[325124627,1714528243539,-500.0,0.00012776,2]
[325124628,1714528243548,-500.0,0.00012776,2]
[325124629,1714528243557,-366.43516454,0.00012776,2]
[325124630,1714528243566,-500.0,0.00012776,2]
[325124631,1714528243576,-500.0,0.00012776,2]
[325124633,1714528243585,-500.0,0.00012776,2]
[325124635,1714528243594,-500.0,0.00012776,2]
[325124637,1714528243604,-500.0,0.00012776,2]
[325124639,1714528243614,-500.0,0.00012776,2]
[325124641,1714528243624,-500.0,0.00012776,2]
[325124643,1714528243633,-500.0,0.00012776,2]
[325124645,1714528243643,-500.0,0.00012776,2]
[325124647,1714528243652,-500.0,0.00012776,2]
[325124649,1714528243661,-519.21,0.00012776,2]
[325124651,1714528243670,-500.0,0.00012776,2]
[325124653,1714528243679,-188.94224259,0.00012776,2]
[325124655,1714528243688,-500.0,0.00012776,2]
[325124657,1714528243697,-500.0,0.00012776,2]
[325124659,1714528243707,-500.0,0.00012776,2]
[325124661,1714528243716,-507.33812938,0.00012776,2]
[325124663,1714528243725,-709.97,0.00012776,2]
[325124665,1714528243733,-512.56224821,0.00012776,2]
[325124667,1714528243743,-500.0,0.00012776,2]
[325124669,1714528243752,-500.0,0.00012776,2]
[325124670,1714528243761,-522.30602315,0.00012776,2]
[325124672,1714528243771,-500.0,0.00012776,2]
[325124674,1714528243780,-500.0,0.00012776,2]
[325124676,1714528243789,-500.0,0.00012776,2]
[325124678,1714528243799,-500.0,0.00012776,2]
[325124680,1714528243808,-500.0,0.00012776,2]
[325124683,1714528243818,-500.0,0.00012776,2]
[325124685,1714528243827,-500.0,0.00012776,2]
[325124686,1714528243836,-500.0,0.00012776,2]
[325124688,1714528243845,-500.0,0.00012776,2]
[325124690,1714528243857,-616.05,0.00012776,2]
[325124692,1714528243865,-500.0,0.00012776,2]
[325124695,1714528243875,-500.0,0.00012776,2]
[325124697,1714528243883,-500.0,0.00012776,2]
[325124699,1714528243893,-395.67519815,0.00012776,2]
[325124701,1714528243902,-507.09030448,0.00012776,2]
[325124702,1714528243911,-501.84285342,0.00012776,2]
[325124705,1714528243920,-500.86435049,0.00012776,2]
[325124707,1714528243933,-500.0,0.00012776,2]
[325124708,1714528243942,-500.0,0.00012776,2]
[325124710,1714528243951,-500.0,0.00012776,2]
[325124713,1714528243960,-292.11743088,0.00012776,2]
[325124714,1714528243970,-184.975745,0.00012776,2]
[325124716,1714528243980,-519.32,0.00012776,2]
[325124718,1714528243989,-184.975745,0.00012776,2]
[325124720,1714528243997,-772.2,0.00012776,2]
[325124722,1714528244011,-151.0,0.00012776,2]
[325124724,1714528244020,-500.0,0.00012776,2]
[325124726,1714528244029,-500.0,0.00012776,2]
[325124728,1714528244038,-6748.348404,0.00012776,2]
[325124731,1714528244049,-207.162666,0.00012776,2]
[325124733,1714528244058,-10000.0,0.00012777,2]
[325124735,1714528244068,-19682.54185445,0.00012777,2]
[325124737,1714528244077,-20215.31451928,0.00012777,2]
[325124739,1714528244087,-548.2762206,0.00012777,2]
[325124741,1714528244097,-289.03587327,0.00012777,2]
[325124743,1714528244108,-155.20668225,0.00012777,2]
[325124745,1714528244118,-919.41401251,0.00012777,2]
[325124747,1714528244127,-500.0,0.00012777,2]
[325124749,1714528244136,-513.08472538,0.00012777,2]
[325124751,1714528244146,-504.01517253,0.00012777,2]
[325124753,1714528244155,-517.06940444,0.00012777,2]
[325124755,1714528244164,-511.28330105,0.00012777,2]
[325124757,1714528244173,-154.8457053,0.00012777,2]
[325124759,1714528244183,-503.46091724,0.00012777,2]
[325124761,1714528244192,-504.54571811,0.00012777,2]
[325124763,1714528244202,-503.46819112,0.00012777,2]
[325124765,1714528244211,-504.3210241,0.00012777,2]
[325124767,1714528244221,-500.0,0.00012777,2]
[325124769,1714528244230,-502.50214952,0.00012777,2]
[325124771,1714528244239,-500.0,0.00012777,2]
[325124773,1714528244248,-500.0,0.00012777,2]
[325124775,1714528244257,-522.30425664,0.00012777,2]
[325124777,1714528244267,-500.0,0.00012777,2]
[325124779,1714528244276,-504.82519782,0.00012777,2]
[325124781,1714528244285,-503.70226674,0.00012777,2]
[325124783,1714528244294,-500.0,0.00012777,2]
[325124785,1714528244304,-500.0,0.00012777,2]
[325124787,1714528244314,-159.72489257,0.00012777,2]
[325124789,1714528244323,-563.32024612,0.00012777,2]
[325124791,1714528244332,-514.78024587,0.00012777,2]
[325124793,1714528244342,-500.0,0.00012777,2]
[325124795,1714528244351,-500.0,0.00012777,2]
[325124797,1714528244362,-503.58938158,0.00012777,2]
[325124799,1714528244371,-500.0,0.00012777,2]
[325124801,1714528244380,-500.0,0.00012777,2]
[325124803,1714528244389,-506.43977997,0.00012777,2]
[325124805,1714528244399,-508.42137285,0.00012777,2]
[325124807,1714528244408,-590.23955835,0.00012777,2]
[325124809,1714528244417,-500.0,0.00012777,2]
[325124811,1714528244428,-504.43649762,0.00012777,2]
[325124813,1714528244438,-506.02349734,0.00012777,2]
[325124815,1714528244447,-511.73861124,0.00012777,2]
[325124817,1714528244457,-513.57857173,0.00012777,2]
[325124819,1714528244466,-577.00784614,0.00012777,2]
[325124821,1714528244475,-501.7605361,0.00012777,2]
[325124823,1714528244484,-521.38306642,0.00012777,2]
[325124825,1714528244493,-510.73369492,0.00012777,2]
[325124827,1714528244502,-500.0,0.00012777,2]
[325124829,1714528244511,-500.63962471,0.00012777,2]
[325124831,1714528244520,-503.53655217,0.00012777,2]
[325124833,1714528244530,-500.0,0.00012777,2]
[325124835,1714528244539,-503.1581035,0.00012777,2]
[325124838,1714528244549,-514.31422141,0.00012777,2]
[325124840,1714528244558,-502.91912172,0.00012777,2]
[325124842,1714528244567,-504.5336487,0.00012777,2]
[325124844,1714528244576,-488.0891531,0.00012777,2]
[325124845,1714528244586,-276.9527068,0.00012777,2]
[325124848,1714528244595,-507.42277199,0.00012777,2]
[325124849,1714528244604,-515.54522918,0.00012777,2]
[325124851,1714528244613,-500.0,0.00012777,2]
[325124853,1714528244623,-500.0,0.00012777,2]
[325124855,1714528244632,-536.69671934,0.00012777,2]
[325124858,1714528244643,-516.07490288,0.00012777,2]
[325124860,1714528244652,-509.91194384,0.00012777,2]
[325124862,1714528244661,-500.0,0.00012777,2]
[325124864,1714528244671,-511.79788616,0.00012777,2]
[325124866,1714528244680,-500.0,0.00012777,2]
[325124868,1714528244689,-503.70053998,0.00012777,2]
[325124870,1714528244698,-504.30014926,0.00012777,2]
[325124872,1714528244707,-502.18134798,0.00012777,2]
[325124874,1714528244717,-511.59738359,0.00012777,2]
[325124876,1714528244726,-513.88928864,0.00012777,2]
[325124878,1714528244735,-500.0,0.00012777,2]
[325124880,1714528244744,-429.07723997,0.00012777,2]
[325124882,1714528244753,-507.2080504,0.00012777,2]
[325124884,1714528244763,-510.52106079,0.00012777,2]
[325124886,1714528244772,-504.29450745,0.00012777,2]
[325124888,1714528244782,-500.0,0.00012777,2]
[325124890,1714528244791,-500.0,0.00012777,2]
[325124892,1714528244800,-500.0,0.00012777,2]
[325124894,1714528244809,-504.35426604,0.00012777,2]
[325124896,1714528244818,-510.55164414,0.00012777,2]
[325124898,1714528244828,-501.95233726,0.00012777,2]
[325124900,1714528244838,-506.39756305,0.00012777,2]
[325124902,1714528244847,-504.03505499,0.00012777,2]
[325124904,1714528244857,-500.0,0.00012777,2]
[325124906,1714528244866,-500.0,0.00012777,2]
[325124908,1714528244875,-500.0,0.00012777,2]
[325124910,1714528244885,-500.0,0.00012777,2]
[325124912,1714528244894,-500.0,0.00012777,2]
[325124914,1714528244904,-632.10468486,0.00012777,2]
[325124916,1714528244914,-500.0,0.00012777,2]
[325124918,1714528244925,-598.08772272,0.00012777,2]
[325124920,1714528244936,-318.38217749,0.00012777,2]
[325124922,1714528244946,-337.01765521,0.00012777,2]
[325124924,1714528244956,-295.5259794,0.00012777,2]
[325124925,1714528244967,-500.0,0.00012777,2]
[325124926,1714528244976,-517.99123234,0.00012777,2]
[325124927,1714528244986,-500.0,0.00012777,2]
[325124928,1714528244996,-500.0,0.00012777,2]
[325124929,1714528245005,-508.04173849,0.00012777,2]
[325124930,1714528245015,-500.0,0.00012777,2]
[325124932,1714528245024,-502.88683195,0.00012777,2]
[325124934,1714528245033,-501.75059848,0.00012777,2]
[325124936,1714528245043,-500.0,0.00012777,2]
[325124938,1714528245053,-158.38493813,0.00012777,2]
[325124940,1714528245063,-500.82869797,0.00012777,2]
[325124942,1714528245072,-500.0,0.00012777,2]
[325124944,1714528245082,-511.98236964,0.00012777,2]
[325124946,1714528245091,-500.0,0.00012777,2]
[325124948,1714528245100,-506.07101794,0.00012777,2]
[325124950,1714528245110,-500.0,0.00012777,2]
[325124952,1714528245120,-500.0,0.00012777,2]
[325124954,1714528245130,-501.76119035,0.00012777,2]
[325124956,1714528245139,-508.34590108,0.00012777,2]
[325124958,1714528245148,-505.12734698,0.00012777,2]
[325124960,1714528245158,-500.0,0.00012777,2]
[325124962,1714528245167,-501.18937291,0.00012777,2]
[325124964,1714528245176,-500.0,0.00012777,2]
[325124967,1714528245186,-353.93779507,0.00012777,2]
[325124968,1714528245195,-500.0,0.00012777,2]
[325124970,1714528245204,-286.95431578,0.00012777,2]
[325124973,1714528245214,-502.94145486,0.00012777,2]
[325124975,1714528245224,-500.0,0.00012777,2]
[325124977,1714528245233,-503.29313617,0.00012777,2]
[325124979,1714528245243,-502.49820914,0.00012777,2]
[325124980,1714528245253,-500.0,0.00012777,2]
[325124983,1714528245264,-500.0,0.00012777,2]
[325124985,1714528245273,-500.0,0.00012777,2]
[325124987,1714528245283,-500.0,0.00012777,2]
[325124989,1714528245293,-406.11625925,0.00012777,2]
[325124991,1714528245302,-500.0,0.00012777,2]
[325124992,1714528245311,-500.0,0.00012777,2]
[325124994,1714528245321,-504.68395919,0.00012777,2]
[325124996,1714528245330,-503.20346826,0.00012777,2]
[325124997,1714528245340,-500.0,0.00012777,2]
[325124999,1714528245350,-503.01966872,0.00012777,2]
[325125001,1714528245360,-500.0,0.00012777,2]
[325125003,1714528245370,-502.01533996,0.00012777,2]
[325125005,1714528245379,-501.78113492,0.00012777,2]
[325125007,1714528245389,-555.11859942,0.00012777,2]
[325125009,1714528245399,-501.22706013,0.00012777,2]
[325125011,1714528245409,-500.0,0.00012777,2]
[325125013,1714528245418,-501.70320455,0.00012777,2]
[325125015,1714528245430,-500.0,0.00012777,2]
[325125017,1714528245440,-500.0,0.00012777,2]
[325125019,1714528245450,-501.36110518,0.00012777,2]
[325125021,1714528245459,-510.11632089,0.00012777,2]
[325125023,1714528245469,-502.81067753,0.00012777,2]
[325125025,1714528245478,-500.90294991,0.00012777,2]
[325125027,1714528245488,-500.0,0.00012777,2]
[325125031,1714528245498,-151.0,0.00012777,2]
[325125034,1714528245507,-409.81279757,0.00012777,2]
[325125035,1714528245517,-151.0,0.00012777,2]
[325125037,1714528245527,-500.0,0.00012777,2]
[325125039,1714528245536,-151.0,0.00012777,2]
[325125041,1714528245545,-500.0,0.00012777,2]
[325125043,1714528245555,-505.04642652,0.00012777,2]
[325125045,1714528245564,-151.0,0.00012777,2]
[325125047,1714528245573,-500.0,0.00012777,2]
[325125049,1714528245583,-500.0,0.00012777,2]
[325125051,1714528245592,-214.410738,0.00012777,2]
[325125053,1714528245602,-500.0,0.00012777,2]
[325125056,1714528245612,-151.0,0.00012777,2]
[325125059,1714528245622,-501.85015735,0.00012777,2]
[325125062,1714528245631,-151.0,0.00012777,2]
[325125065,1714528245641,-500.0,0.00012777,2]
[325125068,1714528245650,-503.63345691,0.00012777,2]
[325125071,1714528245660,-503.35111574,0.00012777,2]
[325125075,1714528245669,-500.0,0.00012777,2]
[325125078,1714528245678,-500.0,0.00012777,2]
[325125080,1714528245688,-151.0,0.00012777,2]
[325125082,1714528245697,-500.0,0.00012777,2]
[325125084,1714528245707,-500.0,0.00012777,2]
[325125086,1714528245716,-500.0,0.00012777,2]
[325125088,1714528245726,-1318.952359,0.00012777,2]
[325125090,1714528245735,-501.05881572,0.00012777,2]
[325125092,1714528245744,-1318.952359,0.00012777,2]
[325125094,1714528245753,-502.41533289,0.00012777,2]
[325125096,1714528245762,-503.37508096,0.00012777,2]
[325125098,1714528245772,-504.19925073,0.00012777,2]
[325125100,1714528245781,-500.0,0.00012777,2]
[325125102,1714528245791,-500.0,0.00012777,2]
[325125104,1714528245800,-500.0,0.00012777,2]
[325125106,1714528245809,-501.00772388,0.00012777,2]
[325125108,1714528245819,-500.0,0.00012777,2]
[325125110,1714528245829,-500.0,0.00012777,2]
[325125112,1714528245838,-151.0,0.00012777,2]
[325125114,1714528245847,-500.0,0.00012777,2]
[325125116,1714528245858,-500.0,0.00012777,2]
[325125118,1714528245867,-151.0,0.00012777,2]
[325125120,1714528245877,-530.95798245,0.00012777,2]
[325125122,1714528245887,-501.25168679,0.00012777,2]
[325125124,1714528245896,-676.383792,0.00012777,2]
[325125126,1714528245906,-151.259859,0.00012777,2]
[325125129,1714528245916,-503.06426724,0.00012777,2]
[325125131,1714528245929,-676.383792,0.00012777,2]
[325125133,1714528245939,-518.07990093,0.00012777,2]
[325125135,1714528245948,-500.0,0.00012777,2]
[325125137,1714528245958,-500.0,0.00012777,2]
[325125139,1714528245970,-504.90193492,0.00012777,2]
[325125141,1714528245979,-500.0,0.00012777,2]
[325125143,1714528245989,-500.0,0.00012777,2]
[325125144,1714528245998,-227.338545,0.00012777,2]
[325125147,1714528246008,-500.0,0.00012777,2]
[325125149,1714528246018,-500.0,0.00012777,2]
[325125150,1714528246027,-508.58789716,0.00012777,2]
[325125153,1714528246038,-227.338545,0.00012777,2]
[325125155,1714528246047,-500.0,0.00012777,2]
[325125157,1714528246057,-500.47776841,0.00012777,2]
[325125159,1714528246066,-500.0,0.00012777,2]
[325125161,1714528246075,-151.0,0.00012777,2]
[325125163,1714528246085,-690.0326,0.00012777,2]
[325125165,1714528246095,-504.31838473,0.00012777,2]
[325125166,1714528246104,-151.0,0.00012777,2]
[325125169,1714528246115,-502.91814679,0.00012777,2]
[325125171,1714528246124,-501.53754402,0.00012777,2]
[325125172,1714528246133,-690.0326,0.00012777,2]
[325125175,1714528246143,-500.0,0.00012777,2]
[325125177,1714528246152,-505.3388807,0.00012777,2]
[325125179,1714528246162,-500.0,0.00012777,2]
[325125181,1714528246172,-500.0,0.00012777,2]
[325125182,1714528246181,-500.0,0.00012777,2]
[325125184,1714528246191,-500.0,0.00012777,2]
[325125187,1714528246201,-500.0,0.00012777,2]
[325125189,1714528246211,-151.0,0.00012777,2]
[325125191,1714528246221,-501.06942962,0.00012777,2]
[325125193,1714528246231,-504.26072854,0.00012777,2]
[325125195,1714528246240,-760.822074,0.00012777,2]
[325125197,1714528246250,-501.87136524,0.00012777,2]
[325125199,1714528246260,-504.65266101,0.00012777,2]
[325125201,1714528246270,-500.0,0.00012777,2]
[325125203,1714528246279,-500.0,0.00012777,2]
[325125205,1714528246290,-505.1891045,0.00012777,2]
[325125207,1714528246301,-151.0,0.00012777,2]
[325125209,1714528246311,-500.0,0.00012777,2]
[325125211,1714528246321,-500.0,0.00012777,2]
[325125212,1714528246330,-500.0,0.00012777,2]
[325125213,1714528246339,-500.0,0.00012777,2]
[325125214,1714528246349,-504.74318495,0.00012777,2]
[325125215,1714528246360,-500.0,0.00012777,2]
[325125216,1714528246370,-500.0,0.00012777,2]
[325125217,1714528246380,-504.0293028,0.00012777,2]
[325125218,1714528246390,-500.0,0.00012777,2]
[325125219,1714528246400,-502.0224803,0.00012777,2]
[325125221,1714528246409,-500.0,0.00012777,2]
[325125223,1714528246419,-500.0,0.00012777,2]
[325125226,1714528246430,-500.0,0.00012777,2]
[325125228,1714528246440,-159.960583,0.00012777,2]
[325125229,1714528246450,-279.037656,0.00012777,2]
[325125231,1714528246460,-500.0,0.00012777,2]
[325125233,1714528246470,-159.960583,0.00012777,2]
[325125236,1714528246479,-279.037656,0.00012777,2]
[325125238,1714528246490,-503.62897165,0.00012777,2]
[325125240,1714528246500,-604.44579313,0.00012777,2]
[325125242,1714528246509,-509.84055251,0.00012777,2]
[325125244,1714528246519,-506.77936936,0.00012777,2]
[325125246,1714528246529,-151.0,0.00012777,2]
[325125248,1714528246538,-151.0,0.00012777,2]
[325125250,1714528246549,-256.59164,0.00012777,2]
[325125252,1714528246558,-509.56130002,0.00012777,2]
[325125254,1714528246568,-512.70735778,0.00012777,2]
[325125256,1714528246577,-256.59164,0.00012777,2]
[325125258,1714528246587,-505.77994006,0.00012777,2]
[325125260,1714528246597,-749.288209,0.00012777,2]
[325125262,1714528246607,-749.288209,0.00012777,2]
[325125264,1714528246616,-152.809557,0.00012777,2]
[325125266,1714528246626,-504.64731088,0.00012777,2]
[325125268,1714528246635,-749.288209,0.00012777,2]
[325125270,1714528246645,-749.288209,0.00012777,2]
[325125273,1714528246655,-504.2167443,0.00012777,2]
[325125275,1714528246665,-1295.255473,0.00012777,2]
[325125277,1714528246675,-1295.255473,0.00012777,2]
[325125279,1714528246684,-963.813339,0.00012777,2]
[325125281,1714528246695,-1295.255473,0.00012777,2]
[325125283,1714528246705,-1295.255473,0.00012777,2]
[325125285,1714528246715,-963.813339,0.00012777,2]
[325125287,1714528246724,-506.20687947,0.00012777,2]
[325125289,1714528246734,-177.574276,0.00012777,2]
[325125291,1714528246744,-508.52098947,0.00012777,2]
[325125309,1714528246902,-177.574276,0.00012777,2]
[325125311,1714528246912,-177.574276,0.00012777,2]
[325125313,1714528246925,-177.574276,0.00012777,2]
[325125315,1714528246934,-932.653602,0.00012777,2]
[325125317,1714528246943,-932.653602,0.00012777,2]
[325125319,1714528246953,-505.96011936,0.00012777,2]
[325125321,1714528246963,-192.626697,0.00012777,2]
[325125323,1714528246972,-192.626697,0.00012777,2]
[325125325,1714528246981,-511.60306781,0.00012777,2]
[325125327,1714528246990,-932.653602,0.00012777,2]
[325125329,1714528247000,-932.653602,0.00012777,2]
[325125331,1714528247010,-192.626697,0.00012777,2]
[325125333,1714528247019,-192.626697,0.00012777,2]
[325125335,1714528247028,-151.0,0.00012777,2]
[325125337,1714528247037,-151.0,0.00012777,2]
[325125339,1714528247046,-151.0,0.00012777,2]
[325125341,1714528247055,-151.0,0.00012777,2]
[325125343,1714528247064,-151.0,0.00012777,2]
[325125345,1714528247073,-151.0,0.00012777,2]
[325125347,1714528247083,-151.0,0.00012777,2]
[325125349,1714528247092,-151.0,0.00012777,2]